bitfinex-derivatives/quotes_BTCF0:USTF0_20241227
["timestamp","ask_amount","ask_price","bid_price","bid_amount"]
[1735307053056,0.00355624,96429.0,96427.0,0.051911]
[1735307053263,0.004,96428.0,96427.0,0.051911]
[1735307053763,0.00755624,96429.0,96427.0,0.051911]
[1735307054459,0.00555624,96429.0,96427.0,0.051911]
[1735307054656,0.002,96428.0,96427.0,0.051911]
[1735307055769,0.001,96428.0,96427.0,0.051911]
[1735307056859,0.00355624,96429.0,96427.0,0.051911]
[1735307057165,0.001,96428.0,96427.0,0.051911]
[1735307057961,0.003,96428.0,96427.0,0.051911]
[1735307058262,0.0776,96446.0,96438.0,0.051906]
[1735307058563,0.0776,96446.0,96419.0,0.0738]
[1735307058564,0.15377267,96459.0,96436.0,0.10320265]
[1735307058754,0.15377267,96459.0,96450.0,0.10320265]
[1735307059358,0.15377267,96459.0,96457.0,0.051895]
[1735307060155,0.15377267,96459.0,96451.0,0.1785]
[1735307060156,0.051896,96458.0,96451.0,0.14]
[1735307060361,0.051896,96457.0,96442.0,0.051903]
[1735307060564,0.0394,96456.0,96441.0,0.01060089]
[1735307060755,0.0394,96456.0,96443.0,0.051903]
[1735307061162,0.0394,96456.0,96442.0,0.14]
[1735307061460,0.0394,96456.0,96447.0,0.051901]
[1735307061965,0.0394,96456.0,96442.0,0.01013647]
[1735307062167,0.051898,96453.0,96440.0,0.24320265]
[1735307062371,0.051898,96453.0,96440.0,0.29510765]
[1735307062667,0.051898,96453.0,96442.0,0.001]
[1735307062867,0.051899,96452.0,96442.0,0.001]
[1735307063069,0.0394,96456.0,96442.0,0.001]
[1735307063278,0.051899,96451.0,96442.0,0.001]
[1735307063769,0.004,96453.0,96442.0,0.001]
[1735307063975,0.051902,96445.0,96442.0,0.001]
[1735307065270,0.0362,96450.0,96442.0,0.001]
[1735307065663,0.0362,96450.0,96441.0,0.051904]
[1735307065864,0.003,96445.0,96442.0,0.001]
[1735307066374,0.0392,96450.0,96442.0,0.001]
[1735307066871,0.003,96445.0,96442.0,0.001]
[1735307067169,0.003,96445.0,96443.0,0.051903]
[1735307068066,0.0392,96450.0,96442.0,0.001]
[1735307068267,0.0392,96450.0,96449.0,0.0519]
[1735307068667,0.003,96450.0,96449.0,0.0519]
[1735307068968,0.051881,96484.0,96473.0,0.051887]
[1735307069176,0.0353,96483.0,96473.0,0.051887]
[1735307069359,0.0353,96483.0,96474.0,0.14]
[1735307070467,0.0353,96483.0,96481.0,0.051883]
[1735307071668,0.0353,96483.0,96481.0,0.001]
[1735307072171,0.0353,96483.0,96474.0,0.192887]
[1735307072368,0.0353,96483.0,96481.0,0.007]
[1735307072677,0.0353,96483.0,96481.0,0.011]
[1735307074580,0.0363,96483.0,96475.0,0.051886]
[1735307075069,0.0383,96483.0,96474.0,0.01062059]
[1735307075377,0.0383,96483.0,96469.0,0.051889]
[1735307075563,0.0353,96483.0,96469.0,0.051889]
[1735307075768,0.0353,96483.0,96471.0,0.051888]
[1735307076378,0.0353,96483.0,96479.0,0.051883]
[1735307076664,0.0353,96483.0,96474.0,0.001]
[1735307076665,0.0353,96483.0,96481.0,0.051883]
[1735307077779,0.1,96500.0,96499.0,0.051873]
[1735307079071,0.1,96500.0,96499.0,0.195873]
[1735307081181,0.103,96500.0,96499.0,0.196873]
[1735307082076,0.108,96500.0,96499.0,0.192873]
[1735307083372,0.108,96500.0,96499.0,0.052873]
[1735307083773,0.108,96500.0,96499.0,0.21325565]
[1735307083981,0.108,96500.0,96499.0,0.22454042]
[1735307084282,0.051865,96515.0,96507.0,0.051869]
[1735307084473,0.051861,96522.0,96515.0,0.051864]
[1735307084675,0.051863,96519.0,96510.0,0.10320265]
[1735307085088,0.051863,96519.0,96512.0,0.051866]
[1735307085289,0.051863,96519.0,96513.0,0.051865]
[1735307086875,0.1046,96525.0,96513.0,0.051865]
[1735307087075,0.1046,96525.0,96515.0,0.051864]
[1735307087278,0.1046,96525.0,96518.0,0.051863]
[1735307087482,0.1046,96525.0,96519.0,0.051862]
[1735307087981,0.1046,96525.0,96521.0,0.051861]
[1735307087982,0.0706,96525.0,96521.0,0.051861]
[1735307088582,0.0706,96525.0,96523.0,0.05186]
[1735307089183,0.14427485,96545.0,96528.0,0.051857]
[1735307089379,0.0347,96532.0,96528.0,0.051857]
[1735307089885,0.0347,96532.0,96523.0,0.005]
[1735307090278,0.0347,96532.0,96522.0,0.19186]
[1735307090988,0.0347,96532.0,96522.0,0.05186]
[1735307091381,0.0357,96532.0,96522.0,0.05186]
[1735307092388,0.0357,96532.0,96528.0,0.008]
[1735307092785,0.0357,96532.0,96522.0,0.05186]
[1735307093480,0.0357,96532.0,96528.0,0.008]
[1735307093681,0.0347,96532.0,96528.0,0.012]
[1735307094492,0.0367,96532.0,96528.0,0.008]
[1735307095096,0.0367,96532.0,96523.0,0.05186]
[1735307096287,0.0367,96532.0,96516.0,0.14]
[1735307096494,0.0367,96532.0,96524.0,0.051859]
[1735307097890,0.0347,96532.0,96525.0,0.051859]
[1735307098086,0.0357,96532.0,96525.0,0.051859]
[1735307098801,0.0357,96532.0,96526.0,0.051858]
[1735307098802,0.0367,96532.0,96526.0,0.051858]
[1735307099496,0.0347,96532.0,96526.0,0.051858]
[1735307099693,0.0367,96532.0,96526.0,0.051858]
[1735307101889,0.0367,96532.0,96511.0,0.051866]
[1735307102087,0.051857,96530.0,96513.0,0.051865]
[1735307102292,0.051857,96530.0,96510.0,0.10320265]
[1735307102612,0.0367,96532.0,96510.0,0.10320265]
[1735307102804,0.051858,96527.0,96516.0,0.051864]
[1735307103104,0.051858,96527.0,96510.0,0.10320265]
[1735307103105,0.051862,96520.0,96510.0,0.051867]
[1735307103299,0.0318,96519.0,96510.0,0.051867]
[1735307103499,0.0318,96519.0,96499.0,0.24759714]
[1735307103698,0.051865,96514.0,96504.0,0.05187]
[1735307103885,0.032,96518.0,96499.0,0.24759714]
[1735307104090,0.051871,96503.0,96500.0,0.01024462]
[1735307104398,0.0322,96502.0,96500.0,0.051872]
[1735307105092,0.0322,96502.0,96497.0,0.38815714]
[1735307105289,0.051873,96499.0,96497.0,0.24759714]
[1735307105508,0.0656,96498.0,96489.0,0.24759714]
[1735307105693,0.051874,96497.0,96489.0,0.24759714]
[1735307105893,0.051874,96497.0,96489.0,0.38759714]
[1735307106996,0.09242585,96495.0,96489.0,0.14]
[1735307107194,0.09242585,96495.0,96493.0,0.051876]
[1735307107391,0.09242585,96495.0,96494.0,0.07865474]
[1735307107994,0.09242585,96503.0,96494.0,0.21865474]
[1735307108303,0.09242585,96503.0,96501.0,0.051872]
[1735307109804,0.09242585,96511.0,96505.0,0.05187]
[1735307111502,0.09342585,96511.0,96505.0,0.05187]
[1735307112292,0.09242585,96511.0,96505.0,0.05187]
[1735307112492,0.09242585,96510.0,96505.0,0.05187]
[1735307113304,0.09242585,96510.0,96500.0,0.18619706]
[1735307113501,0.09242585,96510.0,96499.0,0.18619706]
[1735307113502,0.051872,96501.0,96499.0,0.18619706]
[1735307113706,0.051875,96495.0,96494.0,0.24759714]
[1735307114001,0.09242585,96508.0,96494.0,0.24759714]
[1735307114204,0.051869,96507.0,96495.0,0.051875]
[1735307114503,0.05187,96506.0,96495.0,0.051875]
[1735307114689,0.0329,96513.0,96487.0,0.14]
[1735307114690,0.18485171,96503.0,96487.0,0.14]
[1735307114895,0.051882,96482.0,96468.0,0.24759714]
[1735307115096,0.051882,96482.0,96477.0,0.01131024]
[1735307115297,0.0346,96481.0,96468.0,0.24759714]
[1735307115502,0.0346,96481.0,96472.0,0.191887]
[1735307115796,0.0346,96481.0,96473.0,0.051887]
[1735307115992,0.09267776,96480.0,96473.0,0.051887]
[1735307116304,0.09267776,96480.0,96472.0,0.14]
[1735307116305,0.051885,96478.0,96472.0,0.14]
[1735307116700,0.051885,96478.0,96476.0,0.00255463]
[1735307116906,0.0326,96477.0,96462.0,0.24759714]
[1735307117199,0.10320265,96472.0,96462.0,0.24759714]
[1735307117401,0.0326,96477.0,96463.0,0.14]
[1735307117803,0.0326,96477.0,96457.0,0.051895]
[1735307118402,0.10320265,96470.0,96451.0,0.01017281]
[1735307118712,0.051892,96464.0,96463.0,0.003]
[1735307120310,0.051892,96464.0,96463.0,0.006]
[1735307121103,0.051892,96464.0,96463.0,0.009]
[1735307122504,0.0327,96469.0,96463.0,0.009]
[1735307122797,0.05189,96468.0,96463.0,0.009]
[1735307123407,0.09247668,96472.0,96463.0,0.009]
[1735307123602,0.09247668,96472.0,96471.0,0.051888]
[1735307124110,0.13900265,96490.0,96471.0,0.051888]
[1735307124111,0.09247668,96475.0,96471.0,0.051888]
[1735307124302,0.09247668,96475.0,96471.0,0.191888]
[1735307124503,0.09247668,96475.0,96471.0,0.14]
[1735307124711,0.09247668,96475.0,96474.0,0.051887]
[1735307125215,0.09247668,96484.0,96479.0,0.051884]
[1735307126313,0.09247668,96484.0,96482.0,0.051882]
[1735307126514,0.09247668,96494.0,96471.0,0.15131784]
[1735307126719,0.001,96484.0,96472.0,0.02181182]
[1735307126909,0.001,96484.0,96471.0,0.15131784]
[1735307126910,0.001,96484.0,96480.0,0.051883]
[1735307127103,0.09247668,96494.0,96480.0,0.051883]
[1735307127303,0.10320265,96490.0,96480.0,0.051883]
[1735307127498,0.09247668,96494.0,96480.0,0.051883]
[1735307128005,0.09247668,96494.0,96479.0,0.004]
[1735307128006,0.10320265,96490.0,96479.0,0.004]
[1735307128305,0.051883,96481.0,96479.0,0.004]
[1735307128813,0.051879,96488.0,96472.0,0.007]
[1735307129008,0.051883,96481.0,96472.0,0.007]
[1735307129406,0.10320265,96482.0,96479.0,0.001]
[1735307129612,0.0334,96480.0,96479.0,0.001]
[1735307130102,0.0334,96480.0,96472.0,0.002]
[1735307130300,0.051887,96474.0,96472.0,0.003]
[1735307130711,0.051887,96474.0,96472.0,0.001]
[1735307131107,0.05189,96468.0,96454.0,0.051897]
[1735307131411,0.051891,96467.0,96454.0,0.051897]
[1735307131713,0.10320265,96470.0,96454.0,0.051897]
[1735307131913,0.10320265,96470.0,96451.0,0.15044817]
[1735307132120,0.051893,96462.0,96451.0,0.15044817]
[1735307132714,0.10320265,96470.0,96451.0,0.15044817]
[1735307132921,0.051895,96459.0,96454.0,0.009]
[1735307134116,0.051895,96459.0,96454.0,0.01]
[1735307135215,0.14436668,96468.0,96464.0,0.051892]
[1735307135627,0.09247668,96468.0,96466.0,0.051891]
[1735307135922,0.15446293,96479.0,96478.0,0.051884]
[1735307136108,0.15446293,96481.0,96480.0,0.051883]
[1735307136513,0.15446293,96481.0,96480.0,0.07368146]
[1735307136709,0.15446293,96481.0,96480.0,0.2034451]
[1735307136917,0.15446293,96481.0,96480.0,0.21368113]
[1735307137116,0.18640711,96488.0,96480.0,0.21368113]
[1735307137117,0.0015554,96488.0,96487.0,0.05188]
[1735307137716,0.0015554,96488.0,96487.0,0.19188]
[1735307139120,0.0015554,96488.0,96487.0,0.19388]
[1735307139525,0.0015554,96488.0,96487.0,0.19288]
[1735307139712,0.0015554,96488.0,96487.0,0.19488]
[1735307140613,0.0015554,96488.0,96487.0,0.19388]
[1735307140812,0.0015554,96488.0,96487.0,0.19488]
[1735307142226,0.0015554,96488.0,96487.0,0.19388]
[1735307142427,0.0015554,96488.0,96487.0,0.12187999]
[1735307142627,0.0015554,96488.0,96487.0,0.12087999]
[1735307142923,0.0015554,96488.0,96487.0,0.12187999]
[1735307143111,0.0015554,96488.0,96487.0,0.002]
[1735307144027,0.0015554,96488.0,96487.0,0.001]
[1735307144724,0.0015554,96488.0,96468.0,0.05189]
[1735307144925,0.0534344,96488.0,96487.0,0.001]
[1735307145522,0.05402394,96488.0,96473.0,0.051887]
[1735307145827,0.051883,96481.0,96467.0,0.01026403]
[1735307146023,0.10320265,96483.0,96466.0,0.051891]
[1735307146226,0.051885,96477.0,96466.0,0.051891]
[1735307147121,0.051885,96477.0,96466.0,0.06310735]
[1735307148923,0.051885,96477.0,96467.0,0.01152845]
[1735307149126,0.051885,96477.0,96466.0,0.06210735]
[1735307149325,0.051885,96477.0,96467.0,0.13152129]
[1735307149527,0.051885,96477.0,96467.0,0.12]
[1735307149732,0.051885,96477.0,96466.0,0.06310735]
[1735307149927,0.051889,96469.0,96467.0,0.01152247]
[1735307150228,0.051889,96469.0,96466.0,0.001]
[1735307150229,0.051885,96477.0,96466.0,0.001]
[1735307150528,0.051886,96476.0,96466.0,0.001]
[1735307150842,0.10320265,96480.0,96466.0,0.001]
[1735307151027,0.051887,96473.0,96466.0,0.001]
[1735307151519,0.051887,96473.0,96462.0,0.051893]
[1735307151717,0.15435038,96483.0,96459.0,0.01034999]
[1735307151718,0.15435038,96483.0,96472.0,0.051887]
[1735307152029,0.18485171,96488.0,96480.0,0.051883]
[1735307152929,0.001,96483.0,96480.0,0.051883]
[1735307154121,0.002,96483.0,96480.0,0.051883]
[1735307154322,0.002,96483.0,96473.0,0.12]
[1735307154627,0.002,96483.0,96481.0,0.051883]
[1735307154628,0.001,96483.0,96481.0,0.051883]
[1735307155218,0.001,96483.0,96445.0,0.42329771]
[1735307155219,0.002,96483.0,96473.0,0.01022917]
[1735307155427,0.002,96483.0,96474.0,0.01150994]
[1735307155733,0.002,96483.0,96481.0,0.051883]
[1735307156229,0.001,96483.0,96481.0,0.051883]
[1735307156533,0.001,96483.0,96470.0,0.10320265]
[1735307156534,0.1544815,96491.0,96482.0,0.1532]
[1735307157429,0.1544815,96491.0,96489.0,0.051878]
[1735307157628,0.1544815,96496.0,96489.0,0.051878]
[1735307157822,0.21566033,96517.0,96516.0,0.051864]
[1735307158219,0.24698896,96523.0,96516.0,0.02179248]
[1735307158536,0.24646895,96523.0,96522.0,0.051861]
[1735307158721,0.24646895,96523.0,96522.0,0.07362466]
[1735307159128,0.00056001,96530.0,96529.0,0.051857]
[1735307159428,0.00056001,96537.0,96529.0,0.051857]
[1735307159627,0.10320265,96540.0,96529.0,0.051857]
[1735307160435,0.10320265,96540.0,96532.0,0.051855]
[1735307160633,0.003,96537.0,96532.0,0.051855]
[1735307160930,0.003,96537.0,96533.0,0.12]
[1735307161129,0.003,96537.0,96532.0,0.051855]
[1735307161733,0.003,96537.0,96528.0,0.01028977]
[1735307161934,0.003,96537.0,96517.0,0.0723]
[1735307161935,0.003,96537.0,96532.0,0.001]
[1735307162126,0.003,96540.0,96532.0,0.001]
[1735307162928,0.003,96537.0,96529.0,0.051857]
[1735307163129,0.003,96537.0,96517.0,0.1923]
[1735307163429,0.003,96537.0,96530.0,0.051856]
[1735307163635,0.051847,96548.0,96530.0,0.051856]
[1735307163837,0.004,96540.0,96530.0,0.051856]
[1735307165034,0.004,96540.0,96532.0,0.001]
[1735307165233,0.051847,96548.0,96532.0,0.001]
[1735307165435,0.003,96537.0,96532.0,0.001]
[1735307165639,0.003,96537.0,96530.0,0.052856]
[1735307166036,0.051847,96548.0,96530.0,0.052856]
[1735307166338,0.004,96540.0,96532.0,0.001]
[1735307167141,0.003,96537.0,96532.0,0.001]
[1735307167935,0.003,96537.0,96530.0,0.052856]
[1735307168138,0.003,96537.0,96530.0,0.0632152]
[1735307168545,0.004,96540.0,96532.0,0.001]
[1735307169148,0.004,96540.0,96530.0,0.0632152]
[1735307169348,0.003,96537.0,96530.0,0.0632152]
[1735307169732,0.003,96537.0,96532.0,0.001]
[1735307170138,0.004,96540.0,96532.0,0.001]
[1735307171438,0.004,96540.0,96530.0,0.0632152]
[1735307171944,0.004,96537.0,96530.0,0.0622152]
[1735307172244,0.004,96537.0,96532.0,0.001]
[1735307172633,0.003,96540.0,96531.0,0.051855]
[1735307173144,0.003,96540.0,96536.0,0.051853]
[1735307173343,0.051847,96548.0,96536.0,0.051853]
[1735307173645,0.004,96537.0,96536.0,0.051853]
[1735307174934,0.051848,96547.0,96536.0,0.051853]
[1735307175134,0.004,96540.0,96536.0,0.051853]
[1735307176051,0.004,96537.0,96536.0,0.052853]
[1735307176550,0.004,96537.0,96536.0,0.051853]
[1735307176852,0.004,96537.0,96536.0,0.052853]
[1735307177736,0.051848,96547.0,96536.0,0.052853]
[1735307177953,0.004,96540.0,96536.0,0.052853]
[1735307178851,0.004,96537.0,96536.0,0.052853]
[1735307179355,0.004,96537.0,96536.0,0.051853]
[1735307179556,0.051848,96547.0,96536.0,0.052853]
[1735307179744,0.004,96540.0,96536.0,0.052853]
[1735307180051,0.004,96540.0,96536.0,0.051853]
[1735307180253,0.004,96540.0,96536.0,0.001]
[1735307180450,0.087952,96539.0,96536.0,0.001]
[1735307180751,0.0362,96538.0,96536.0,0.001]
[1735307181353,0.004,96537.0,96536.0,0.001]
[1735307182051,0.0402,96538.0,96536.0,0.001]
[1735307182552,0.0402,96538.0,96536.0,0.052853]
[1735307182850,0.0362,96538.0,96536.0,0.052853]
[1735307183052,0.004,96537.0,96536.0,0.052853]
[1735307183449,0.004,96537.0,96536.0,0.051853]
[1735307183653,0.004,96537.0,96536.0,0.052853]
[1735307184756,0.0402,96538.0,96536.0,0.052853]
[1735307185252,0.0362,96538.0,96536.0,0.052853]
[1735307185454,0.004,96537.0,96536.0,0.052853]
[1735307186253,0.0402,96538.0,96536.0,0.052853]
[1735307186640,0.0402,96538.0,96537.0,0.01159412]
[1735307187849,0.0362,96538.0,96537.0,0.01159412]
[1735307188653,0.0402,96538.0,96537.0,0.01159412]
[1735307189459,0.004,96538.0,96537.0,0.0116378]
[1735307189757,0.15523201,96545.0,96537.0,0.0126378]
[1735307189949,0.15523201,96545.0,96544.0,0.051849]
[1735307190261,0.15523201,96545.0,96544.0,0.1834868]
[1735307190448,0.15523201,96545.0,96544.0,0.20256955]
[1735307190954,0.15523201,96560.0,96554.0,0.051844]
[1735307191148,0.15523201,96560.0,96555.0,0.0116378]
[1735307191350,0.15523201,96560.0,96556.0,0.0116378]
[1735307191544,0.15523201,96560.0,96557.0,0.0116378]
[1735307191744,0.15523201,96560.0,96558.0,0.0116378]
[1735307191944,0.15523201,96560.0,96554.0,0.051844]
[1735307192157,0.21767713,96563.0,96555.0,0.01191885]
[1735307192355,0.21767713,96563.0,96556.0,0.01191885]
[1735307192562,0.21767713,96563.0,96555.0,0.009]
[1735307192748,0.16583813,96563.0,96556.0,0.01190462]
[1735307192950,0.15523201,96563.0,96562.0,0.051839]
[1735307193345,0.03775436,96569.0,96562.0,0.051839]
[1735307193346,0.15523201,96565.0,96562.0,0.051839]
[1735307194655,0.03775436,96569.0,96558.0,0.24871849]
[1735307194863,0.051841,96559.0,96558.0,0.19381849]
[1735307195065,0.051841,96559.0,96558.0,0.02911849]
[1735307195251,0.051841,96559.0,96545.0,0.37195571]
[1735307195252,0.351841,96559.0,96545.0,0.37195571]
[1735307195448,0.051855,96533.0,96521.0,0.0688]
[1735307195653,0.051856,96531.0,96522.0,0.01183658]
[1735307195860,0.051856,96531.0,96523.0,0.01183658]
[1735307196059,0.051856,96531.0,96524.0,0.01183658]
[1735307196263,0.051856,96531.0,96525.0,0.01183658]
[1735307196454,0.051856,96531.0,96526.0,0.01183658]
[1735307196655,0.12392391,96532.0,96512.0,0.051866]
[1735307196849,0.10320265,96527.0,96507.0,0.0347]
[1735307197248,0.051857,96529.0,96516.0,0.051864]
[1735307197660,0.051857,96529.0,96518.0,0.01184054]
[1735307197859,0.10320265,96530.0,96524.0,0.002]
[1735307198065,0.051858,96528.0,96524.0,0.002]
[1735307198254,0.05043876,96526.0,96524.0,0.002]
[1735307198765,0.05043876,96526.0,96516.0,0.051864]
[1735307199259,0.05043876,96526.0,96510.0,0.051867]
[1735307199567,0.001,96526.0,96511.0,0.06368367]
[1735307199751,0.001,96526.0,96516.0,0.051864]
[1735307199950,0.001,96526.0,96517.0,0.01180652]
[1735307200174,0.001,96526.0,96516.0,0.051864]
[1735307200461,0.12381435,96517.0,96516.0,0.051864]
[1735307200758,0.12381435,96517.0,96516.0,0.06365864]
[1735307200965,0.12381435,96517.0,96516.0,0.01179464]
[1735307201159,0.12381435,96517.0,96508.0,0.0341]
[1735307201359,0.12381435,96517.0,96509.0,0.01179477]
[1735307201567,0.12381435,96517.0,96510.0,0.01179118]
[1735307201864,0.12381435,96517.0,96511.0,0.01179118]
[1735307202059,0.12381435,96518.0,96515.0,0.051864]
[1735307202256,0.12381435,96518.0,96516.0,0.06365506]
[1735307202457,0.12381435,96518.0,96517.0,0.0342]
[1735307203465,0.12381435,96523.0,96518.0,0.051863]
[1735307206761,0.12381435,96523.0,96510.0,0.051867]
[1735307207065,0.10320265,96520.0,96510.0,0.051867]
[1735307208058,0.10320265,96520.0,96510.0,0.002]
[1735307208263,0.051866,96512.0,96510.0,0.002]
[1735307208562,0.051866,96512.0,96510.0,0.006]
[1735307208759,0.0664,96519.0,96510.0,0.001]
[1735307208957,0.051864,96516.0,96488.0,0.0693]
[1735307209157,0.10320265,96510.0,96489.0,0.02200069]
[1735307209357,0.0664,96519.0,96488.0,0.0693]
[1735307209358,0.10320265,96500.0,96488.0,0.0693]
[1735307209554,0.10320265,96500.0,96489.0,0.01028317]
[1735307209760,0.10320265,96500.0,96488.0,0.0693]
[1735307209969,0.15507565,96500.0,96489.0,0.01028171]
[1735307210267,0.10320265,96500.0,96488.0,0.0693]
[1735307210457,0.051874,96499.0,96489.0,0.051878]
[1735307210657,0.10320265,96500.0,96489.0,0.051878]
[1735307211262,0.051878,96490.0,96489.0,0.005]
[1735307212752,0.051878,96490.0,96488.0,0.0435]
[1735307212955,0.051878,96490.0,96489.0,0.004]
[1735307213175,0.001,96490.0,96489.0,0.064878]
[1735307213966,0.001,96490.0,96489.0,0.184878]
[1735307214351,0.001,96490.0,96489.0,0.129]
[1735307214352,0.053878,96490.0,96489.0,0.129]
[1735307214854,0.002,96490.0,96489.0,0.129]
[1735307215060,0.002,96490.0,96489.0,0.12]
[1735307215263,0.003,96490.0,96489.0,0.12]
[1735307215665,0.004,96490.0,96489.0,0.12]
[1735307215862,0.003,96490.0,96489.0,0.12]
[1735307216065,0.004,96490.0,96489.0,0.12]
[1735307216366,0.003,96490.0,96489.0,0.12]
[1735307219260,0.003,96490.0,96488.0,0.0345]
[1735307219457,0.051878,96489.0,96488.0,0.0345]
[1735307220061,0.003,96490.0,96488.0,0.0345]
[1735307220268,0.003,96490.0,96488.0,0.086379]
[1735307221667,0.001,96490.0,96488.0,0.0345]
[1735307221870,0.054878,96490.0,96488.0,0.0345]
[1735307222068,0.002,96490.0,96488.0,0.0345]
[1735307222265,0.002,96490.0,96489.0,0.051878]
[1735307224278,0.003,96490.0,96489.0,0.051878]
[1735307224965,0.001,96490.0,96489.0,0.051878]
[1735307225166,0.003,96490.0,96489.0,0.051878]
[1735307225573,0.001,96490.0,96489.0,0.051878]
[1735307225772,0.003,96490.0,96489.0,0.051878]
[1735307229085,0.001,96490.0,96489.0,0.051878]
[1735307229376,0.12351822,96494.0,96493.0,0.051876]
[1735307229584,0.15476793,96500.0,96493.0,0.07386162]
[1735307229769,0.15476793,96503.0,96502.0,0.051871]
[1735307229976,0.1052775,96520.0,96514.0,0.051865]
[1735307230178,0.11517608,96520.0,96514.0,0.051865]
[1735307231078,0.10475749,96520.0,96514.0,0.051865]
[1735307231274,0.05044784,96519.0,96514.0,0.051865]
[1735307231783,0.05044784,96519.0,96507.0,0.051869]
[1735307232282,0.05044784,96519.0,96514.0,0.001]
[1735307232581,0.15467895,96516.0,96514.0,0.001]
[1735307233881,0.15467895,96516.0,96514.0,0.052865]
[1735307234073,0.15467895,96516.0,96515.0,0.0345]
[1735307234275,0.15467895,96516.0,96515.0,0.04626099]
[1735307234577,0.15667895,96516.0,96515.0,0.0345]
[1735307234977,0.16167895,96516.0,96515.0,0.0345]
[1735307235178,0.15967895,96516.0,96515.0,0.0345]
[1735307235477,0.007,96516.0,96515.0,0.04728975]
[1735307236075,0.007,96516.0,96515.0,0.04731096]
[1735307236772,0.007,96516.0,96515.0,0.05783809]
[1735307238467,0.15467895,96523.0,96522.0,0.051861]
[1735307238770,0.27318706,96595.0,96526.0,0.051859]
[1735307238771,0.15480129,96527.0,96526.0,0.051859]
[1735307238970,0.15480129,96527.0,96526.0,0.18368692]
[1735307239170,0.15480129,96527.0,96526.0,0.12]
[1735307239371,0.15480129,96527.0,96518.0,0.051863]
[1735307239582,0.15480129,96527.0,96519.0,0.01182759]
[1735307239781,0.15480129,96527.0,96522.0,0.008]
[1735307240181,0.10320265,96530.0,96522.0,0.008]
[1735307240571,0.10320265,96530.0,96522.0,0.012]
[1735307240973,0.051855,96533.0,96522.0,0.012]
[1735307241175,0.0353,96536.0,96522.0,0.012]
[1735307241377,0.051851,96541.0,96522.0,0.011]
[1735307241687,0.051851,96541.0,96523.0,0.0356]
[1735307241984,0.051851,96541.0,96526.0,0.007]
[1735307242379,0.18556769,96545.0,96535.0,0.051854]
[1735307242575,0.18556769,96545.0,96536.0,0.033]
[1735307242986,0.18556769,96545.0,96529.0,0.051857]
[1735307243185,0.10320265,96540.0,96529.0,0.051857]
[1735307243778,0.10320265,96540.0,96524.0,0.033]
[1735307243779,0.10320265,96540.0,96536.0,0.001]
[1735307243974,0.15505065,96546.0,96536.0,0.001]
[1735307244690,0.001,96540.0,96536.0,0.001]
[1735307245292,0.05043413,96545.0,96536.0,0.001]
[1735307246384,0.05043413,96545.0,96536.0,0.002]
[1735307246588,0.15505065,96546.0,96536.0,0.002]
[1735307246891,0.001,96540.0,96536.0,0.001]
[1735307247279,0.001,96540.0,96538.0,0.051852]
[1735307247480,0.001,96540.0,96536.0,0.001]
[1735307247685,0.10320265,96546.0,96536.0,0.001]
[1735307247686,0.10320265,96546.0,96536.0,0.002]
[1735307247875,0.10320265,96546.0,96537.0,0.12]
[1735307248491,0.10320265,96546.0,96538.0,0.051852]
[1735307250187,0.001,96540.0,96538.0,0.051852]
[1735307250790,0.051846,96550.0,96538.0,0.051852]
[1735307251592,0.001,96540.0,96538.0,0.051852]
[1735307252298,0.001,96540.0,96538.0,0.052852]
[1735307253599,0.001,96540.0,96539.0,0.0356]
[1735307253786,0.18556769,96556.0,96539.0,0.0356]
[1735307253987,0.18556769,96556.0,96555.0,0.051843]
[1735307254187,0.18556769,96556.0,96555.0,0.171843]
[1735307254699,0.18712176,96562.0,96555.0,0.171843]
[1735307255490,0.18712176,96562.0,96555.0,0.173843]
[1735307255995,0.00155407,96562.0,96555.0,0.175843]
[1735307256709,0.00155407,96562.0,96555.0,0.124]
[1735307256997,0.18556769,96573.0,96567.0,0.051836]
[1735307257202,0.18556769,96573.0,96569.0,0.051835]
[1735307257499,0.18556769,96573.0,96568.0,0.0682]
[1735307257500,0.18556769,96574.0,96573.0,0.051833]
[1735307258591,0.18556769,96574.0,96573.0,0.054833]
[1735307258792,0.18556769,96574.0,96573.0,0.06534691]
[1735307258993,0.051828,96584.0,96573.0,0.19234691]
[1735307259999,0.051828,96584.0,96573.0,0.18934691]
[1735307260214,0.051828,96584.0,96573.0,0.19034691]
[1735307260408,0.09270782,96578.0,96573.0,0.07034691]
[1735307260797,0.09270782,96578.0,96574.0,0.12]
[1735307261098,0.09270782,96578.0,96573.0,0.07034691]
[1735307261297,0.09270782,96578.0,96573.0,0.06534691]
[1735307261506,0.09270782,96578.0,96574.0,0.12]
[1735307261700,0.09270782,96578.0,96573.0,0.06434691]
[1735307261899,0.09270782,96580.0,96574.0,0.001]
[1735307263209,0.09270782,96580.0,96574.0,0.052833]
[1735307263412,0.09270782,96583.0,96578.0,0.05183]
[1735307263611,0.09270782,96583.0,96573.0,0.13051391]
[1735307263612,0.09270782,96583.0,96579.0,0.05183]
[1735307264413,0.09270782,96583.0,96573.0,0.13051391]
[1735307264811,0.09270782,96586.0,96573.0,0.13051391]
[1735307265115,0.09270782,96586.0,96578.0,0.051831]
[1735307265906,0.09270782,96588.0,96578.0,0.051831]
[1735307267312,0.09270782,96590.0,96578.0,0.10320265]
[1735307267512,0.09270782,96590.0,96589.0,0.051825]
[1735307268013,0.09270782,96590.0,96589.0,0.171825]
[1735307268611,0.1,96600.0,96589.0,0.171825]
[1735307268612,0.1,96600.0,96594.0,0.051822]